[Event "Schack-SM 2024: Mastarklassen"]
[Site "Fortnox Arena, Hejaregatan 5, Vaxjo, Sweden"]
[Date "2024.06.30"]
[Round "2.6"]
[White "Neretljak, Nedzad"]
[Black "Tuomainen, Felix"]
[Result "0-1"]
[TimeControl "90 minutes for 40 moves + 30 minutes for the rest of the game + 30 seconds per move from move one."]
[WhiteTitle "CM"]
[BlackTitle "FM"]
[WhiteElo "2048"]
[BlackElo "2255"]

1. e4 {[%clk 01:30:56]} {[%emt 00:00:03]} d5 {[%clk 01:29:19]} {[%emt
00:01:42]} 2. e5 {[%clk 01:29:51]} {[%emt 00:01:36]} c5 {[%clk 01:29:05]}
{[%emt 00:00:43]} 3. b4 {[%clk 01:29:47]} {[%emt 00:00:34]} d4 {[%clk
01:27:18]} {[%emt 00:02:18]} 4. Nf3 {[%clk 01:20:58]} {[%emt 00:09:17]} Bg4
{[%clk 01:19:14]} {[%emt 00:08:35]} 5. h3 {[%clk 01:17:18]} {[%emt 00:04:10]}
Bh5 {[%clk 01:19:23]} {[%emt 00:00:19]} 6. Be2 {[%clk 01:16:18]} {[%emt
00:01:31]} e6 {[%clk 01:17:57]} {[%emt 00:01:58]} 7. Bb2 {[%emt 00:06:55]} Nc6
{[%clk 01:14:24]} 8. b5 {[%clk 01:12:46]} {[%emt 00:01:39]} Bxf3 {[%clk
01:13:39]} {[%emt 00:01:16]} 9. Bxf3 {[%clk 01:12:46]} {[%emt 00:00:30]} Nxe5
{[%clk 01:13:53]} {[%emt 00:00:16]} 10. Bxb7 {[%clk 01:08:52]} {[%emt
00:04:24]} Rb8 {[%clk 01:13:12]} {[%emt 00:01:11]} 11. Ba6 {[%clk 01:07:14]}
{[%emt 00:02:07]} Nf6 {[%clk 01:11:26]} {[%emt 00:02:17]} 12. O-O {[%clk
01:07:18]} {[%emt 00:00:25]} Bd6 {[%clk 01:10:53]} {[%emt 00:01:04]} 13. d3
{[%clk 01:05:24]} {[%emt 00:02:23]} O-O {[%clk 01:10:12]} {[%emt 00:01:11]} 14.
c4 {[%clk 01:02:41]} {[%emt 00:03:13]} Ne8 {[%clk 01:03:09]} {[%emt 00:07:34]}
15. Bc1 {[%clk 01:03:03]} {[%emt 00:00:07]} Nc7 {[%clk 01:03:06]} {[%emt
00:00:34]} 16. f4 {[%clk 01:02:54]} {[%emt 00:00:37]} Ng6 {[%clk 01:03:09]}
{[%emt 00:00:28]} 17. g3 {[%clk 00:57:01]} {[%emt 00:06:23]} Nxa6 {[%clk
01:03:13]} {[%emt 00:00:26]} 18. bxa6 {[%clk 00:57:23]} {[%emt 00:00:07]} f5
{[%clk 01:00:08]} {[%emt 00:03:36]} 19. Na3 {[%clk 00:55:32]} {[%emt 00:02:20]}
e5 {[%clk 00:58:54]} {[%emt 00:01:45]} 20. Nb5 {[%clk 00:55:55]} {[%emt
00:00:06]} exf4 {[%clk 00:57:41]} {[%emt 00:01:44]} 21. Nxd6 {[%clk 00:54:46]}
{[%emt 00:01:37]} Qxd6 {[%clk 00:58:08]} {[%emt 00:00:03]} 22. Bxf4 {[%clk
00:55:07]} {[%emt 00:00:09]} Nxf4 {[%clk 00:58:15]} {[%emt 00:00:24]} 23. Rxf4
{[%clk 00:55:30]} {[%emt 00:00:06]} Qxa6 {[%clk 00:58:11]} {[%emt 00:00:34]} 24.
Qf3 {[%clk 00:50:35]} {[%emt 00:05:26]} Qb7 {[%clk 00:55:51]} {[%emt 00:02:48]}
25. Qxb7 {[%clk 00:50:50]} {[%emt 00:00:17]} Rxb7 {[%clk 00:56:20]} {[%emt
00:00:02]} 26. Raf1 {[%clk 00:51:11]} {[%emt 00:00:09]} Rbf7 {[%clk 00:54:37]}
{[%emt 00:02:14]} 27. Rb1 {[%clk 00:51:33]} {[%emt 00:00:08]} Re7 {[%clk
00:53:40]} {[%emt 00:01:24]} 28. Rf3 {[%clk 00:50:10]} {[%emt 00:01:55]} Re2
{[%clk 00:51:52]} {[%emt 00:02:19]} 29. Rb5 {[%clk 00:49:17]} {[%emt 00:01:22]}
Rxa2 {[%clk 00:51:54]} {[%emt 00:00:29]} 30. Rxc5 {[%clk 00:49:39]} {[%emt
00:00:08]} g6 {[%clk 00:52:14]} {[%emt 00:00:11]} 31. Rd5 {[%clk 00:48:57]}
{[%emt 00:01:11]} a5 {[%clk 00:50:50]} {[%emt 00:01:55]} 32. Rxd4 {[%clk
00:49:19]} {[%emt 00:00:06]} a4 {[%clk 00:50:38]} {[%emt 00:00:43]} 33. c5
{[%clk 00:49:27]} {[%emt 00:00:21]} Ra8 {[%clk 00:42:49]} {[%emt 00:08:20]} 34.
Rc4 {[%clk 00:47:20]} {[%emt 00:02:37]} Kf7 {[%clk 00:37:58]} {[%emt 00:05:21]}
35. c6 {[%clk 00:43:21]} {[%emt 00:04:30]} a3 {[%clk 00:37:36]} {[%emt
00:00:53]} 36. Rf1 {[%clk 00:35:08]} {[%emt 00:08:40]} Rb2 {[%clk 00:35:06]}
{[%emt 00:02:59]} 37. c7 {[%clk 00:35:18]} {[%emt 00:00:23]} Rc8 {[%clk
00:35:34]} {[%emt 00:00:01]} 38. g4 {[%clk 00:19:26]} {[%emt 00:16:22]} a2
{[%clk 00:30:29]} {[%emt 00:05:36]} 39. gxf5 {[%clk 00:19:23]} {[%emt
00:00:33]} gxf5 {[%clk 00:30:35]} {[%emt 00:00:24]} 40. Rf2 {[%emt 00:02:15]}
f4 41. Rfxf4+ {[%clk 00:17:38]} Ke6 {[%clk 00:29:27]} {[%emt 00:01:35]} 42. Rf1
{[%clk 00:18:04]} {[%emt 00:00:05]} Rb1 {[%clk 00:28:08]} {[%emt 00:01:48]} 43.
Ra4 {[%clk 00:18:25]} {[%emt 00:00:12]} Rg8+ {[%clk 00:28:17]} {[%emt
00:00:21]} 44. Kf2 {[%clk 00:17:03]} {[%emt 00:01:51]} Rf8+ {[%clk 00:26:24]}
{[%emt 00:02:25]} 45. Ke2 {[%clk 00:17:28]} {[%emt 00:00:06]} Rbxf1 {[%clk
00:26:23]} {[%emt 00:00:30]} 46. c8=Q+ {[%clk 00:12:25]} {[%emt 00:05:31]} Rxc8
{[%clk 00:26:47]} {[%emt 00:00:07]} 0-1

[Event "Schack-SM 2024: Mastarklassen"]
[Site "Fortnox Arena, Hejaregatan 5, Vaxjo, Sweden"]
[Date "2024.06.30"]
[Round "2.7"]
[White "Ostensson, Julia"]
[Black "Lind, Jan-Olov"]
[Result "1-0"]
[TimeControl "90 minutes for 40 moves + 30 minutes for the rest of the game + 30 seconds per move from move one."]
[WhiteElo "2004"]
[BlackElo "2135"]

1. e4 {[%clk 01:30:57]} {[%emt 00:00:01]} c5 {[%clk 01:30:46]} {[%emt
00:00:15]} 2. Nf3 {[%clk 01:31:21]} {[%emt 00:00:05]} g6 {[%clk 01:31:09]}
{[%emt 00:00:07]} 3. c3 {[%clk 01:31:46]} {[%emt 00:00:05]} d5 {[%clk
01:31:15]} {[%emt 00:00:24]} 4. exd5 {[%clk 01:32:05]} {[%emt 00:00:12]} Qxd5
{[%clk 01:31:38]} {[%emt 00:00:06]} 5. d4 {[%clk 01:32:04]} {[%emt 00:00:31]}
Nc6 {[%clk 01:31:20]} {[%emt 00:00:47]} 6. Be2 {[%clk 01:32:24]} {[%emt
00:00:11]} Bg7 {[%clk 01:31:08]} {[%emt 00:00:42]} 7. c4 {[%clk 01:32:44]}
{[%emt 00:00:12]} Qd8 {[%clk 01:31:19]} {[%emt 00:00:17]} 8. d5 {[%clk
01:33:09]} {[%emt 00:00:06]} Nd4 {[%clk 01:31:34]} {[%emt 00:00:15]} 9. Nxd4
{[%clk 01:33:25]} {[%emt 00:00:13]} cxd4 {[%clk 01:31:57]} {[%emt 00:00:07]} 10.
Nd2 {[%clk 01:33:53]} {[%emt 00:00:03]} e5 {[%clk 01:28:39]} {[%emt 00:03:48]}
11. O-O {[%clk 01:34:12]} {[%emt 00:00:10]} Ne7 {[%clk 01:26:20]} {[%emt
00:02:48]} 12. Nb3 {[%clk 01:32:57]} {[%emt 00:01:46]} O-O {[%clk 01:15:08]}
{[%emt 00:11:42]} 13. f4 {[%clk 01:32:36]} {[%emt 00:00:52]} e4 {[%clk
01:01:22]} {[%emt 00:14:15]} 14. Nxd4 {[%clk 01:28:42]} {[%emt 00:04:25]} Qb6
{[%clk 01:01:19]} {[%emt 00:00:33]} 15. Be3 {[%clk 01:28:21]} {[%emt 00:00:51]}
Qxb2 {[%clk 01:00:53]} {[%emt 00:00:55]} 16. Rb1 {[%clk 01:21:00]} {[%emt
00:07:51]} Qa3 {[%clk 00:45:56]} {[%emt 00:15:26]} 17. Rb3 {[%clk 01:19:45]}
{[%emt 00:01:45]} Qa5 {[%clk 00:43:03]} {[%emt 00:03:23]} 18. Qb1 {[%clk
01:13:56]} {[%emt 00:06:19]} f5 {[%clk 00:36:21]} {[%emt 00:07:13]} 19. Rd1
{[%clk 01:06:02]} {[%emt 00:08:23]} Rd8 {[%clk 00:26:43]} {[%emt 00:10:08]} 20.
Kh1 {[%clk 01:00:38]} {[%emt 00:05:55]} Kh8 {[%clk 00:23:09]} {[%emt 00:04:04]}
21. Nb5 {[%clk 00:55:56]} {[%emt 00:05:14]} Rg8 {[%clk 00:13:37]} {[%emt
00:10:01]} 22. d6 {[%clk 00:52:02]} {[%emt 00:04:23]} Nc6 {[%clk 00:10:12]}
{[%emt 00:03:55]} 23. d7 {[%clk 00:51:41]} {[%emt 00:00:52]} Rd8 {[%clk
00:10:24]} {[%emt 00:00:18]} 24. dxc8=Q {[%clk 00:50:43]} {[%emt 00:01:27]}
Raxc8 {[%clk 00:10:44]} {[%emt 00:00:10]} 25. Nd6 {[%clk 00:50:20]} {[%emt
00:00:55]} Rc7 {[%clk 00:09:27]} {[%emt 00:01:46]} 26. c5 {[%clk 00:46:57]}
{[%emt 00:03:53]} Rdd7 {[%clk 00:07:57]} {[%emt 00:02:00]} 27. Bb5 {[%clk
00:43:57]} {[%emt 00:03:29]} Rd8 {[%clk 00:05:18]} {[%emt 00:03:10]} 28. Bxc6
{[%clk 00:43:58]} {[%emt 00:00:29]} bxc6 {[%clk 00:05:33]} {[%emt 00:00:14]} 29.
Nf7+ {[%clk 00:43:56]} {[%emt 00:00:33]} Rxf7 {[%clk 00:05:38]} {[%emt
00:00:25]} 30. Rxd8+ {[%clk 00:44:20]} {[%emt 00:00:06]} Qxd8 {[%clk 00:05:47]}
{[%emt 00:00:22]} 31. Rb8 {[%clk 00:44:46]} {[%emt 00:00:03]} Rd7 {[%clk
00:04:53]} {[%emt 00:01:25]} 32. Rxd8+ {[%clk 00:44:42]} {[%emt 00:00:34]} Rxd8
{[%clk 00:05:17]} {[%emt 00:00:06]} 33. h3 {[%clk 00:44:43]} {[%emt 00:00:28]}
h6 {[%clk 00:05:18]} {[%emt 00:00:30]} 34. Qb7 {[%clk 00:44:40]} {[%emt
00:00:35]} Rd3 {[%clk 00:05:27]} {[%emt 00:00:19]} 35. Bg1 {[%clk 00:42:47]}
{[%emt 00:02:24]} e3 {[%clk 00:03:30]} {[%emt 00:02:26]} 36. Qxc6 {[%clk
00:38:14]} {[%emt 00:05:03]} Bd4 {[%clk 00:03:44]} {[%emt 00:00:16]} 37. Qe8+
{[%clk 00:36:06]} {[%emt 00:02:38]} Kh7 {[%clk 00:03:43]} {[%emt 00:00:30]} 38.
Qd7+ {[%clk 00:34:47]} {[%emt 00:01:50]} Kg8 {[%clk 00:04:04]} {[%emt
00:00:08]} 39. Bxe3 {[%clk 00:34:49]} {[%emt 00:00:30]} 1-0

[Event "Schack-SM 2024: Mastarklassen"]
[Site "Fortnox Arena, Hejaregatan 5, Vaxjo, Sweden"]
[Date "2024.06.30"]
[Round "2.8"]
[White "Nygren, David"]
[Black "Granath, Jonas"]
[Result "1-0"]
[TimeControl "90 minutes for 40 moves + 30 minutes for the rest of the game + 30 seconds per move from move one."]
[WhiteElo "2132"]
[BlackElo "1948"]

1. Nf3 {[%emt 00:00:22]} d5 {[%emt 00:00:18]} 2. d4 {[%clk 01:30:39]} {[%emt
00:00:29]} c5 {[%clk 01:30:49]} {[%emt 00:00:21]} 3. e3 {[%clk 01:30:00]}
{[%emt 00:01:10]} cxd4 {[%clk 01:30:37]} {[%emt 00:00:40]} 4. exd4 {[%clk
01:30:04]} {[%emt 00:00:27]} Nf6 {[%clk 01:30:37]} {[%emt 00:00:31]} 5. Bd3
{[%clk 01:28:59]} {[%emt 00:01:34]} Bg4 {[%clk 01:30:40]} {[%emt 00:00:26]} 6.
h3 {[%clk 01:27:07]} {[%emt 00:02:23]} Bh5 {[%clk 01:30:54]} {[%emt 00:00:15]}
7. O-O {[%clk 01:26:33]} {[%emt 00:01:04]} e6 {[%clk 01:31:08]} {[%emt
00:00:16]} 8. Bf4 {[%clk 01:23:07]} {[%emt 00:03:56]} Bd6 {[%clk 01:31:12]}
{[%emt 00:00:28]} 9. Bxd6 {[%clk 01:22:54]} {[%emt 00:00:42]} Qxd6 {[%clk
01:31:39]} {[%emt 00:00:03]} 10. Nbd2 {[%clk 01:21:26]} {[%emt 00:01:57]} O-O
{[%clk 01:31:18]} {[%emt 00:00:52]} 11. Qe1 {[%clk 01:19:51]} {[%emt 00:02:04]}
Nc6 {[%clk 01:25:34]} {[%emt 00:06:15]} 12. c3 {[%clk 01:18:36]} {[%emt
00:01:46]} Bg6 {[%clk 01:23:39]} {[%emt 00:02:24]} 13. Bxg6 {[%clk 01:16:53]}
{[%emt 00:02:13]} hxg6 {[%clk 01:24:05]} {[%emt 00:00:05]} 14. Ne5 {[%clk
01:14:52]} {[%emt 00:02:30]} Nd7 {[%clk 01:21:05]} {[%emt 00:03:30]} 15. f4
{[%clk 01:13:15]} {[%emt 00:02:08]} Ndxe5 {[%clk 01:09:42]} {[%emt 00:11:53]}
16. fxe5 {[%clk 01:13:19]} {[%emt 00:00:25]} Qd8 {[%clk 01:09:38]} {[%emt
00:00:34]} 17. Qg3 {[%clk 01:07:22]} {[%emt 00:06:27]} Ne7 {[%clk 01:08:09]}
{[%emt 00:02:00]} 18. Rae1 {[%clk 01:03:31]} {[%emt 00:04:22]} Nf5 {[%clk
01:06:48]} {[%emt 00:01:49]} 19. Qd3 {[%clk 01:01:36]} {[%emt 00:02:25]} Qg5
{[%clk 01:00:46]} {[%emt 00:06:32]} 20. Rf3 {[%clk 00:54:52]} {[%emt 00:07:12]}
Nh4 {[%clk 00:54:19]} {[%emt 00:06:59]} 21. Rf2 {[%clk 00:50:52]} {[%emt
00:04:30]} Nf5 {[%clk 00:50:38]} {[%emt 00:04:11]} 22. Nf1 {[%clk 00:42:54]}
{[%emt 00:08:27]} Rae8 {[%clk 00:48:47]} {[%emt 00:02:22]} 23. Kh2 {[%clk
00:39:30]} {[%emt 00:03:52]} Re7 {[%clk 00:48:16]} {[%emt 00:01:03]} 24. g4
{[%clk 00:36:35]} {[%emt 00:03:27]} Nh4 {[%clk 00:47:42]} {[%emt 00:01:02]} 25.
Ng3 {[%clk 00:33:50]} {[%emt 00:03:15]} f5 {[%clk 00:41:35]} {[%emt 00:06:38]}
26. exf6 {[%clk 00:28:48]} {[%emt 00:05:31]} gxf6 {[%clk 00:39:57]} {[%emt
00:02:08]} 27. c4 {[%clk 00:24:26]} {[%emt 00:04:53]} f5 {[%clk 00:23:47]}
{[%emt 00:16:39]} 28. Re5 {[%clk 00:21:25]} {[%emt 00:03:31]} Qh6 {[%clk
00:13:52]} {[%emt 00:10:25]} 29. gxf5 {[%clk 00:17:45]} {[%emt 00:04:12]} gxf5
{[%clk 00:13:55]} {[%emt 00:00:25]} 30. cxd5 {[%clk 00:16:27]} {[%emt
00:01:49]} f4 {[%clk 00:09:08]} {[%emt 00:05:16]} 31. Ne4 {[%clk 00:15:50]}
{[%emt 00:01:07]} f3 {[%clk 00:07:53]} {[%emt 00:01:44]} 32. Qd2 {[%clk
00:11:35]} {[%emt 00:04:37]} Qxd2 {[%clk 00:05:36]} {[%emt 00:02:56]} 33. Nxd2
{[%clk 00:08:37]} {[%emt 00:03:28]} Rg7 {[%clk 00:05:43]} {[%emt 00:00:22]} 34.
dxe6 {[%clk 00:06:44]} {[%emt 00:02:24]} Rg2+ {[%clk 00:03:48]} {[%emt
00:02:24]} 35. Rxg2+ {[%clk 00:06:53]} {[%emt 00:00:22]} fxg2 {[%clk 00:04:10]}
{[%emt 00:00:09]} 36. Rg5+ {[%clk 00:04:36]} {[%emt 00:02:46]} 1-0

[Event "Schack-SM 2024: Mastarklassen"]
[Site "Fortnox Arena, Hejaregatan 5, Vaxjo, Sweden"]
[Date "2024.06.30"]
[Round "2.9"]
[White "Mashhadi, Peyman"]
[Black "Johnson, Daniel"]
[Result "1-0"]
[TimeControl "90 minutes for 40 moves + 30 minutes for the rest of the game + 30 seconds per move from move one."]
[WhiteElo "2116"]
[BlackElo "2126"]

1. e4 {[%clk 01:30:03]} {[%emt 00:00:57]} e5 {[%clk 01:28:04]} {[%emt
00:02:56]} 2. Nf3 {[%clk 01:30:13]} {[%emt 00:00:20]} Nc6 {[%clk 01:28:18]}
{[%emt 00:00:11]} 3. Bb5 {[%clk 01:30:20]} {[%emt 00:00:27]} a6 {[%clk
01:28:27]} {[%emt 00:00:22]} 4. Ba4 {[%clk 01:30:26]} {[%emt 00:00:25]} Nf6
{[%clk 01:28:37]} {[%emt 00:00:20]} 5. d3 {[%clk 01:30:29]} {[%emt 00:00:27]}
d6 {[%clk 01:25:41]} {[%emt 00:03:25]} 6. c4 {[%clk 01:27:52]} {[%emt
00:03:08]} g6 {[%clk 01:25:04]} {[%emt 00:01:07]} 7. Nc3 {[%clk 01:25:00]}
{[%emt 00:03:21]} Bg7 {[%clk 01:24:09]} {[%emt 00:01:25]} 8. h3 {[%clk
01:20:06]} {[%emt 00:05:24]} O-O {[%clk 01:22:31]} {[%emt 00:02:08]} 9. Be3
{[%clk 01:13:12]} {[%emt 00:07:24]} Nd7 {[%clk 01:14:26]} {[%emt 00:08:35]} 10.
Bg5 {[%clk 01:04:31]} {[%emt 00:09:10]} f6 {[%clk 01:13:00]} {[%emt 00:01:57]}
11. Be3 {[%clk 01:03:56]} {[%emt 00:01:06]} Nc5 {[%clk 00:56:04]} {[%emt
00:17:25]} 12. Bxc6 {[%clk 00:55:45]} {[%emt 00:08:41]} bxc6 {[%clk 00:56:09]}
{[%emt 00:00:24]} 13. d4 {[%clk 00:50:09]} {[%emt 00:06:07]} exd4 {[%clk
00:50:50]} {[%emt 00:05:49]} 14. Nxd4 {[%clk 00:49:27]} {[%emt 00:01:12]} Qe8
{[%clk 00:50:34]} {[%emt 00:00:46]} 15. O-O {[%clk 00:41:31]} {[%emt 00:08:26]}
Bd7 {[%clk 00:36:04]} {[%emt 00:15:00]} 16. Qc2 {[%clk 00:38:34]} {[%emt
00:03:28]} f5 {[%clk 00:28:05]} {[%emt 00:08:28]} 17. exf5 {[%clk 00:34:20]}
{[%emt 00:04:44]} Bxf5 {[%clk 00:26:05]} {[%emt 00:02:30]} 18. Nxf5 {[%clk
00:34:06]} {[%emt 00:00:45]} Rxf5 {[%clk 00:26:27]} {[%emt 00:00:07]} 19. Rad1
{[%clk 00:27:26]} {[%emt 00:07:10]} Qf7 {[%clk 00:25:11]} {[%emt 00:01:46]} 20.
Ne2 {[%clk 00:26:15]} {[%emt 00:01:41]} Rf8 {[%clk 00:20:21]} {[%emt 00:05:20]}
21. b4 {[%clk 00:20:21]} {[%emt 00:06:24]} Ne6 {[%clk 00:17:23]} {[%emt
00:03:28]} 22. Qe4 {[%clk 00:15:57]} {[%emt 00:04:54]} c5 {[%clk 00:15:41]}
{[%emt 00:02:13]} 23. b5 {[%clk 00:14:40]} {[%emt 00:01:47]} axb5 {[%clk
00:07:08]} {[%emt 00:09:03]} 24. cxb5 {[%clk 00:14:42]} {[%emt 00:00:27]} Re5
{[%clk 00:07:29]} {[%emt 00:00:08]} 25. Qc2 {[%clk 00:13:07]} {[%emt 00:02:06]}
d5 {[%clk 00:05:25]} {[%emt 00:02:34]} 26. a4 {[%clk 00:12:41]} {[%emt
00:00:56]} d4 {[%clk 00:05:49]} {[%emt 00:00:06]} 27. Bc1 {[%clk 00:12:40]}
{[%emt 00:00:31]} Qe8 {[%clk 00:00:33]} {[%emt 00:05:46]} 28. Qc4 {[%clk
00:08:43]} {[%emt 00:04:27]} Kh8 {[%clk 00:00:32]} {[%emt 00:00:31]} 29. f4
{[%clk 00:06:48]} {[%emt 00:02:24]} Ref5 {[%clk 00:00:34]} {[%emt 00:00:27]} 30.
Ng3 {[%clk 00:05:23]} {[%emt 00:01:57]} R5f6 {[%clk 00:00:32]} {[%emt
00:00:31]} 31. Rde1 {[%clk 00:04:55]} {[%emt 00:00:58]} Qf7 {[%clk 00:00:32]}
{[%emt 00:00:30]} 32. Ne4 {[%clk 00:01:59]} {[%emt 00:03:27]} Rf5 {[%clk
00:00:54]} {[%emt 00:00:07]} 33. b6 {[%clk 00:01:14]} {[%emt 00:01:16]} Qd7
{[%clk 00:00:36]} {[%emt 00:00:48]} 34. Ng3 {[%clk 00:00:41]} {[%emt 00:01:03]}
Rd5 {[%clk 00:00:46]} {[%emt 00:00:19]} 35. b7 {[%clk 00:00:34]} {[%emt
00:00:38]} d3 {[%clk 00:00:43]} {[%emt 00:00:33]} 36. Bd2 {[%clk 00:00:41]}
{[%emt 00:00:22]} Nd4 {[%clk 00:00:42]} {[%emt 00:00:32]} 37. a5 {[%clk
00:00:44]} {[%emt 00:00:27]} Ne2+ {[%clk 00:00:47]} {[%emt 00:00:25]} 38. Kh2
{[%clk 00:00:45]} {[%emt 00:00:29]} Nxg3 {[%clk 00:00:32]} {[%emt 00:00:44]} 39.
Kxg3 {[%clk 00:01:13]} {[%emt 00:00:02]} Qd6 {[%clk 00:00:32]} {[%emt
00:00:30]} 40. Re4 {[%clk 00:00:41]} {[%emt 00:01:02]} Rg5+ {[%clk 00:00:32]}
{[%emt 00:00:31]} 41. Kh2 {[%clk 00:28:45]} {[%emt 00:02:26]} Rgf5 {[%clk
00:17:56]} {[%emt 00:13:05]} 42. Re6 {[%clk 00:21:12]} {[%emt 00:08:03]} Qd8
{[%clk 00:17:00]} {[%emt 00:01:26]} 43. a6 {[%clk 00:20:36]} {[%emt 00:01:07]}
Qb8 {[%clk 00:16:19]} {[%emt 00:01:09]} 44. Rfe1 {[%clk 00:20:18]} {[%emt
00:00:48]} g5 {[%clk 00:16:20]} {[%emt 00:00:29]} 45. Qe4 {[%clk 00:16:12]}
{[%emt 00:04:37]} 1-0

[Event "Schack-SM 2024: Mastarklassen"]
[Site "Fortnox Arena, Hejaregatan 5, Vaxjo, Sweden"]
[Date "2024.06.30"]
[Round "2.10"]
[White "Bjorkman, Filip"]
[Black "Karlsson, Jorgen"]
[Result "1-0"]
[TimeControl "90 minutes for 40 moves + 30 minutes for the rest of the game + 30 seconds per move from move one."]
[WhiteElo "2116"]
[BlackElo "2020"]

1. e4 {[%clk 01:30:56]} {[%emt 00:00:04]} d6 {[%clk 01:30:55]} {[%emt
00:00:05]} 2. d4 {[%clk 01:31:21]} {[%emt 00:00:06]} Nd7 {[%clk 01:31:21]}
{[%emt 00:00:04]} 3. Nf3 {[%clk 01:31:34]} {[%emt 00:00:16]} e6 {[%clk
01:31:47]} {[%emt 00:00:05]} 4. Bc4 {[%clk 01:31:09]} {[%emt 00:00:55]} Ne7
{[%clk 01:32:11]} {[%emt 00:00:05]} 5. Bb3 {[%clk 01:31:21]} {[%emt 00:00:18]}
h6 {[%clk 01:31:59]} {[%emt 00:00:42]} 6. O-O {[%clk 01:31:35]} {[%emt
00:00:16]} Ng6 {[%clk 01:27:29]} {[%emt 00:05:00]} 7. Re1 {[%clk 01:30:56]}
{[%emt 00:01:09]} Be7 {[%clk 01:22:55]} {[%emt 00:05:04]} 8. Nbd2 {[%clk
01:31:16]} {[%emt 00:00:10]} c5 {[%clk 01:19:23]} {[%emt 00:04:02]} 9. c3
{[%clk 01:31:37]} {[%emt 00:00:10]} Qc7 {[%clk 01:16:12]} {[%emt 00:03:41]} 10.
a4 {[%clk 01:30:13]} {[%emt 00:01:53]} b6 {[%clk 01:14:54]} {[%emt 00:01:48]}
11. d5 {[%clk 01:29:11]} {[%emt 00:01:32]} Nf6 {[%clk 01:04:34]} {[%emt
00:10:50]} 12. dxe6 {[%clk 01:21:48]} {[%emt 00:07:53]} Bxe6 {[%clk 01:03:56]}
{[%emt 00:01:09]} 13. Bxe6 {[%clk 01:21:59]} {[%emt 00:00:19]} fxe6 {[%clk
01:04:18]} {[%emt 00:00:07]} 14. e5 {[%clk 01:22:20]} {[%emt 00:00:09]} dxe5
{[%clk 01:03:52]} {[%emt 00:00:56]} 15. Qc2 {[%clk 01:20:54]} {[%emt 00:01:55]}
Kf7 {[%clk 01:04:00]} {[%emt 00:00:22]} 16. Nc4 {[%clk 01:20:51]} {[%emt
00:00:34]} Bd6 {[%clk 01:04:02]} {[%emt 00:00:28]} 17. Bg5 {[%clk 00:54:46]}
{[%emt 00:26:35]} Rad8 {[%clk 00:57:28]} {[%emt 00:07:03]} 18. Rad1 {[%clk
00:52:51]} {[%emt 00:02:26]} Qb8 {[%clk 00:57:25]} {[%emt 00:00:33]} 19. Rxd6
{[%clk 00:47:33]} {[%emt 00:05:47]} Rxd6 {[%clk 00:57:30]} {[%emt 00:00:26]} 20.
Nfxe5+ {[%clk 00:47:49]} {[%emt 00:00:14]} Nxe5 {[%clk 00:57:54]} {[%emt
00:00:06]} 21. Nxe5+ {[%clk 00:48:13]} {[%emt 00:00:06]} Ke7 {[%clk 00:56:35]}
{[%emt 00:01:49]} 22. Bf4 {[%clk 00:45:30]} {[%emt 00:03:13]} Rg8 {[%clk
00:43:53]} {[%emt 00:13:12]} 23. Nc6+ {[%clk 00:34:42]} {[%emt 00:11:19]} Rxc6
{[%clk 00:44:16]} {[%emt 00:00:06]} 24. Bxb8 {[%clk 00:35:08]} {[%emt
00:00:05]} Rxb8 {[%clk 00:44:43]} {[%emt 00:00:03]} 25. Qg6 {[%clk 00:34:20]}
{[%emt 00:01:18]} Rg8 {[%clk 00:44:49]} {[%emt 00:00:23]} 26. f4 {[%clk
00:33:21]} {[%emt 00:01:28]} a6 {[%clk 00:39:47]} {[%emt 00:05:33]} 27. g4
{[%clk 00:33:18]} {[%emt 00:00:33]} Rd6 {[%clk 00:39:36]} {[%emt 00:00:41]} 28.
f5 {[%clk 00:33:38]} {[%emt 00:00:11]} b5 {[%clk 00:36:54]} {[%emt 00:03:12]}
29. a5 {[%clk 00:33:55]} {[%emt 00:00:12]} b4 {[%clk 00:36:40]} {[%emt
00:00:44]} 30. h4 {[%clk 00:34:19]} {[%emt 00:00:06]} bxc3 {[%clk 00:36:23]}
{[%emt 00:00:47]} 31. bxc3 {[%clk 00:34:38]} {[%emt 00:00:10]} Kd8 {[%clk
00:23:58]} {[%emt 00:12:56]} 32. g5 {[%clk 00:32:44]} {[%emt 00:02:25]} hxg5
{[%clk 00:23:39]} {[%emt 00:00:48]} 33. hxg5 {[%clk 00:33:08]} {[%emt
00:00:07]} exf5 {[%clk 00:23:43]} {[%emt 00:00:25]} 34. gxf6 {[%clk 00:32:26]}
{[%emt 00:01:13]} Rxf6 {[%clk 00:24:09]} {[%emt 00:00:04]} 35. Qg2 {[%clk
00:32:39]} {[%emt 00:00:15]} 1-0